[Event "Live Chess"]
[Site "Chess.com"]
[Date "2021.04.28"]
[Round "6"]
[White "Kondsaga"]
[Black "David_Askin"]
[Result "0-1"]
[CurrentPosition "6k1/5pp1/7p/Q7/1P6/P7/Kqr5/8 w - -"]
[Timezone "UTC"]
[ECO "B12"]
[ECOUrl "https://www.chess.com/openings/Caro-Kann-Defense-Fantasy-Variation"]
[UTCDate "2021.04.28"]
[UTCTime "03:01:38"]
[WhiteElo "1934"]
[BlackElo "2041"]
[TimeControl "2100+2"]
[Termination "David_Askin won by checkmate"]
[StartTime "03:01:38"]
[EndDate "2021.04.28"]
[EndTime "04:07:28"]
[Link "https://www.chess.com/game/live/13317745065"]

1. e4 {[%clk 0:34:52.9]} 1... c6 {[%clk 0:35:00.9]} 2. d4 {[%clk 0:34:48.2]} 2... d5 {[%clk 0:35:02.3]} 3. f3 {[%clk 0:34:48.3]} 3... e5 {[%clk 0:34:50.6]} 4. Be3 {[%clk 0:31:08.1]} 4... Qb6 {[%clk 0:31:57]} 5. b3 {[%clk 0:30:42.5]} 5... Nf6 {[%clk 0:31:35.2]} 6. Qd2 {[%clk 0:30:07.9]} 6... exd4 {[%clk 0:29:32]} 7. Bxd4 {[%clk 0:30:00.5]} 7... Bc5 {[%clk 0:29:29.1]} 8. Bxc5 {[%clk 0:28:51.5]} 8... Qxc5 {[%clk 0:29:31]} 9. Nc3 {[%clk 0:24:19]} 9... O-O {[%clk 0:28:39.1]} 10. O-O-O {[%clk 0:23:34.4]} 10... Na6 {[%clk 0:26:29.4]} 11. Bxa6 {[%clk 0:22:08.6]} 11... bxa6 {[%clk 0:25:20.2]} 12. exd5 {[%clk 0:22:04.5]} 12... cxd5 {[%clk 0:23:08.7]} 13. Nxd5 {[%clk 0:20:20.9]} 13... Qa3+ {[%clk 0:23:07.5]} 14. Kb1 {[%clk 0:20:16.6]} 14... Nxd5 {[%clk 0:23:08.3]} 15. Qxd5 {[%clk 0:20:08.3]} 15... Be6 {[%clk 0:23:09.9]} 16. Qd4 {[%clk 0:19:35.6]} 16... a5 {[%clk 0:22:43.3]} 17. Qb2 {[%clk 0:19:04.5]} 17... Qb4 {[%clk 0:21:26.4]} 18. Ne2 {[%clk 0:18:35.1]} 18... a4 {[%clk 0:16:27.4]} 19. a3 {[%clk 0:16:46.2]} 19... Qb6 {[%clk 0:14:40.8]} 20. Nd4 {[%clk 0:16:04.5]} 20... axb3 {[%clk 0:13:18.2]} 21. cxb3 {[%clk 0:15:12.5]} 21... a5 {[%clk 0:10:59.9]} 22. Nxe6 {[%clk 0:13:39.8]} 22... Qxe6 {[%clk 0:11:01.8]} 23. Rhe1 {[%clk 0:13:37.8]} 23... Qh6 {[%clk 0:09:58.3]} 24. g3 {[%clk 0:12:59]} 24... Rfc8 {[%clk 0:09:35.8]} 25. f4 {[%clk 0:09:44.6]} 25... Qg6+ {[%clk 0:09:10.9]} 26. Ka1 {[%clk 0:09:36.9]} 26... Rc2 {[%clk 0:08:37]} 27. Qe5 {[%clk 0:08:58.4]} 27... h6 {[%clk 0:08:15.7]} 28. Re2 {[%clk 0:08:09.2]} 28... Rac8 {[%clk 0:06:57.4]} 29. Rxc2 {[%clk 0:06:36.9]} 29... Qxc2 {[%clk 0:06:46.7]} 30. Rb1 {[%clk 0:06:21.1]} 30... Qxh2 {[%clk 0:06:44.3]} 31. Rb2 {[%clk 0:04:56.8]} 31... Qxg3 {[%clk 0:05:56.3]} 32. Qxa5 {[%clk 0:04:20.7]} 32... Qxf4 {[%clk 0:04:56.6]} 33. b4 {[%clk 0:04:11.6]} 33... Rc1+ {[%clk 0:04:28.4]} 34. Rb1 {[%clk 0:03:46.9]} 34... Qd4+ {[%clk 0:04:08.2]} 35. Ka2 {[%clk 0:03:43.9]} 35... Qc4+ {[%clk 0:03:32.1]} 36. Ka1 {[%clk 0:03:33.7]} 36... Qc3+ {[%clk 0:03:25.5]} 37. Ka2 {[%clk 0:03:33.6]} 37... Rc2+ {[%clk 0:03:26.4]} 38. Rb2 {[%clk 0:03:34.2]} 38... Qxb2# {[%clk 0:03:27.6]} 0-1

[Event "Live Chess"]
[Site "Chess.com"]
[Date "2021.04.28"]
[Round "6"]
[White "SmilyFace4"]
[Black "pgstar3"]
[Result "0-1"]
[CurrentPosition "8/3k4/3Np2p/1P1pP1pP/3P1pP1/2p2P2/r1B3K1/8 w - -"]
[Timezone "UTC"]
[ECO "D00"]
[ECOUrl "https://www.chess.com/openings/Queens-Pawn-Opening-Accelerated-London-Steinitz-Countergambit"]
[UTCDate "2021.04.28"]
[UTCTime "03:01:34"]
[WhiteElo "2027"]
[BlackElo "1788"]
[TimeControl "2100+2"]
[Termination "pgstar3 won on time"]
[StartTime "03:01:34"]
[EndDate "2021.04.28"]
[EndTime "04:13:00"]
[Link "https://www.chess.com/game/live/13317745555"]

1. d4 {[%clk 0:35:01.1]} 1... d5 {[%clk 0:34:54.4]} 2. Bf4 {[%clk 0:35:01.4]} 2... c5 {[%clk 0:34:54.5]} 3. e3 {[%clk 0:34:56.8]} 3... Nc6 {[%clk 0:34:50.1]} 4. c3 {[%clk 0:34:44]} 4... Bf5 {[%clk 0:34:44]} 5. Qb3 {[%clk 0:33:11.5]} 5... Qd7 {[%clk 0:34:39.2]} 6. Nf3 {[%clk 0:32:45.1]} 6... e6 {[%clk 0:34:14.7]} 7. Nbd2 {[%clk 0:32:05.2]} 7... c4 {[%clk 0:33:39.2]} 8. Qd1 {[%clk 0:31:54.5]} 8... Nf6 {[%clk 0:33:21.7]} 9. Nh4 {[%clk 0:31:16.5]} 9... Be4 {[%clk 0:31:38.6]} 10. f3 {[%clk 0:29:40.7]} 10... Bg6 {[%clk 0:30:44.7]} 11. Nxg6 {[%clk 0:28:44.7]} 11... fxg6 {[%clk 0:30:22.3]} 12. e4 {[%clk 0:27:42.1]} 12... Be7 {[%clk 0:30:02.7]} 13. e5 {[%clk 0:25:53.9]} 13... Ng8 {[%clk 0:27:36.7]} 14. b3 {[%clk 0:24:46.4]} 14... b5 {[%clk 0:27:26.6]} 15. Be2 {[%clk 0:20:43.1]} 15... g5 {[%clk 0:26:33.6]} 16. Be3 {[%clk 0:20:08]} 16... Nh6 {[%clk 0:26:23]} 17. g4 {[%clk 0:19:46.5]} 17... O-O {[%clk 0:26:02.5]} 18. O-O {[%clk 0:18:58]} 18... Nf7 {[%clk 0:23:52]} 19. Qc2 {[%clk 0:17:59.8]} 19... Rac8 {[%clk 0:21:00.3]} 20. a4 {[%clk 0:14:30.7]} 20... a6 {[%clk 0:15:51.6]} 21. b4 {[%clk 0:13:10.6]} 21... Bd8 {[%clk 0:13:44]} 22. axb5 {[%clk 0:12:42.2]} 22... axb5 {[%clk 0:13:37.6]} 23. Ra3 {[%clk 0:12:35.6]} 23... Bb6 {[%clk 0:13:35.4]} 24. Bf2 {[%clk 0:11:41.7]} 24... Ra8 {[%clk 0:13:18.2]} 25. Rfa1 {[%clk 0:11:30.6]} 25... Qb7 {[%clk 0:12:30.2]} 26. Qa2 {[%clk 0:10:54.4]} 26... Rab8 {[%clk 0:11:56.4]} 27. Kg2 {[%clk 0:09:46.7]} 27... Ne7 {[%clk 0:11:52.4]} 28. Bg3 {[%clk 0:07:51.1]} 28... Ng6 {[%clk 0:11:43.1]} 29. Bd1 {[%clk 0:07:18.5]} 29... Nf4+ {[%clk 0:10:22.2]} 30. Bxf4 {[%clk 0:07:17.4]} 30... gxf4 {[%clk 0:10:23.4]} 31. Bc2 {[%clk 0:06:57]} 31... g6 {[%clk 0:08:21.1]} 32. h4 {[%clk 0:06:16.9]} 32... Qe7 {[%clk 0:08:01.3]} 33. Rh1 {[%clk 0:05:42.1]} 33... Qb7 {[%clk 0:07:29.8]} 34. Qb1 {[%clk 0:04:12.3]} 34... Nh8 {[%clk 0:07:04.9]} 35. Qb2 {[%clk 0:02:47]} 35... h6 {[%clk 0:06:41.4]} 36. h5 {[%clk 0:02:12.3]} 36... g5 {[%clk 0:06:38.1]} 37. Rha1 {[%clk 0:02:09.5]} 37... Nf7 {[%clk 0:06:28.6]} 38. R1a2 {[%clk 0:01:56.6]} 38... Nd8 {[%clk 0:06:21.3]} 39. Bb1 {[%clk 0:01:34.8]} 39... Nc6 {[%clk 0:05:57.4]} 40. Qc2 {[%clk 0:01:24.2]} 40... Qf7 {[%clk 0:05:58.7]} 41. Ra1 {[%clk 0:00:54.6]} 41... Rfe8 {[%clk 0:05:49.8]} 42. R1a2 {[%clk 0:00:53.6]} 42... Rec8 {[%clk 0:05:33.8]} 43. Qb2 {[%clk 0:00:53]} 43... Qb7 {[%clk 0:05:23.7]} 44. Qc2 {[%clk 0:00:51]} 44... Qf7 {[%clk 0:05:21.6]} 45. Ra6 {[%clk 0:00:50.9]} 45... Bxd4 {[%clk 0:04:18.8]} 46. Rxc6 {[%clk 0:00:16.5]} 46... Rxc6 {[%clk 0:04:18.7]} 47. cxd4 {[%clk 0:00:17.7]} 47... Rcc8 {[%clk 0:03:54.7]} 48. Ra6 {[%clk 0:00:08.7]} 48... Ra8 {[%clk 0:03:47.3]} 49. Rd6 {[%clk 0:00:05.7]} 49... Rd8 {[%clk 0:03:43.5]} 50. Rb6 {[%clk 0:00:03.8]} 50... Rab8 {[%clk 0:03:41.1]} 51. Rc6 {[%clk 0:00:04.5]} 51... Kf8 {[%clk 0:03:39.6]} 52. Qg6 {[%clk 0:00:04.3]} 52... Qxg6 {[%clk 0:03:35.4]} 53. Bxg6 {[%clk 0:00:06.2]} 53... Ke7 {[%clk 0:03:36.3]} 54. Nb1 {[%clk 0:00:03.4]} 54... Ra8 {[%clk 0:03:35.1]} 55. Nc3 {[%clk 0:00:03.3]} 55... Rab8 {[%clk 0:03:15.5]} 56. Rc5 {[%clk 0:00:04.5]} 56... Rdc8 {[%clk 0:03:11.9]} 57. Rxb5 {[%clk 0:00:02.3]} 57... Rxb5 {[%clk 0:03:12]} 58. Nxb5 {[%clk 0:00:04.2]} 58... c3 {[%clk 0:03:13.4]} 59. Bc2 {[%clk 0:00:03.9]} 59... Kd7 {[%clk 0:03:09.9]} 60. Nd6 {[%clk 0:00:02.9]} 60... Ra8 {[%clk 0:03:09.3]} 61. b5 {[%clk 0:00:04.6]} 61... Ra2 {[%clk 0:03:09.4]} 0-1

[Event "Live Chess"]
[Site "Chess.com"]
[Date "2021.04.28"]
[Round "6"]
[White "championps"]
[Black "uzkuzk"]
[Result "1-0"]
[CurrentPosition "r3r1k1/bpp2ppp/3pbq2/p7/1nPpN3/P3P1P1/1P3PBP/1RBQ1RK1 b - -"]
[Timezone "UTC"]
[ECO "A25"]
[ECOUrl "https://www.chess.com/openings/English-Opening-Reversed-Sicilian-Closed-3.g3-Nf6-4.Bg2-Bb4"]
[UTCDate "2021.04.28"]
[UTCTime "03:01:55"]
[WhiteElo "1768"]
[BlackElo "1809"]
[TimeControl "2100+2"]
[Termination "championps won by resignation"]
[StartTime "03:01:55"]
[EndDate "2021.04.28"]
[EndTime "03:21:44"]
[Link "https://www.chess.com/game/live/13317746115"]

1. c4 {[%clk 0:35:01.1]} 1... e5 {[%clk 0:30:34.5]} 2. Nc3 {[%clk 0:34:58.5]} 2... Nf6 {[%clk 0:30:24.7]} 3. g3 {[%clk 0:34:56.5]} 3... Bb4 {[%clk 0:30:12]} 4. Bg2 {[%clk 0:34:53.8]} 4... Nc6 {[%clk 0:28:58.1]} 5. Nd5 {[%clk 0:33:38]} 5... Bc5 {[%clk 0:26:33.2]} 6. e3 {[%clk 0:33:36.5]} 6... O-O {[%clk 0:25:38.9]} 7. Ne2 {[%clk 0:33:36.2]} 7... Re8 {[%clk 0:25:39.3]} 8. O-O {[%clk 0:33:31.4]} 8... a5 {[%clk 0:24:55.2]} 9. Nec3 {[%clk 0:33:05.5]} 9... d6 {[%clk 0:24:21.3]} 10. d3 {[%clk 0:31:42.6]} 10... Be6 {[%clk 0:23:05.5]} 11. Rb1 {[%clk 0:31:22.3]} 11... Nb4 {[%clk 0:22:32.8]} 12. d4 {[%clk 0:30:53.2]} 12... Ba7 {[%clk 0:22:16.8]} 13. Nxf6+ {[%clk 0:30:42]} 13... Qxf6 {[%clk 0:22:05.4]} 14. a3 {[%clk 0:29:55.8]} 14... exd4 {[%clk 0:21:45.7]} 15. Ne4 {[%clk 0:29:40.9]} 1-0

[Event "Live Chess"]
[Site "Chess.com"]
[Date "2021.04.28"]
[Round "6"]
[White "Mangonel"]
[Black "Barok44"]
[Result "0-1"]
[CurrentPosition "r4rk1/1q2ppbp/b2p1np1/PNpP2B1/Q1n1P3/5P2/1P3NPP/R3K2R w KQ -"]
[Timezone "UTC"]
[ECO "A57"]
[ECOUrl "https://www.chess.com/openings/Benko-Gambit-Half-Accepted-Zaitsev-System"]
[UTCDate "2021.04.28"]
[UTCTime "03:02:00"]
[WhiteElo "1940"]
[BlackElo "1759"]
[TimeControl "2100+2"]
[Termination "Barok44 won by resignation"]
[StartTime "03:02:00"]
[EndDate "2021.04.28"]
[EndTime "03:13:58"]
[Link "https://www.chess.com/game/live/13317746389"]

1. d4 {[%clk 0:35:02]} 1... Nf6 {[%clk 0:34:34.9]} 2. c4 {[%clk 0:35:02.8]} 2... c5 {[%clk 0:34:33.5]} 3. d5 {[%clk 0:35:03.7]} 3... b5 {[%clk 0:34:32.2]} 4. cxb5 {[%clk 0:35:05.6]} 4... a6 {[%clk 0:34:31.1]} 5. Nc3 {[%clk 0:35:06.5]} 5... g6 {[%clk 0:34:16.4]} 6. a4 {[%clk 0:34:57.2]} 6... axb5 {[%clk 0:33:29.6]} 7. Nxb5 {[%clk 0:34:56.7]} 7... Bg7 {[%clk 0:32:33.5]} 8. f3 {[%clk 0:30:11.3]} 8... Ba6 {[%clk 0:32:23.4]} 9. e4 {[%clk 0:30:09.8]} 9... d6 {[%clk 0:32:10.2]} 10. Nh3 {[%clk 0:29:50.3]} 10... O-O {[%clk 0:32:03.4]} 11. Nf2 {[%clk 0:29:41.5]} 11... Qb6 {[%clk 0:31:54.5]} 12. Bg5 {[%clk 0:29:20.3]} 12... Nbd7 {[%clk 0:31:35]} 13. Bc4 {[%clk 0:29:00.1]} 13... Ne5 {[%clk 0:31:19.8]} 14. a5 {[%clk 0:28:45.7]} 14... Qb7 {[%clk 0:31:14.1]} 15. Qa4 {[%clk 0:28:11.2]} 15... Nxc4 {[%clk 0:31:08.9]} 0-1

[Event "Live Chess"]
[Site "Chess.com"]
[Date "2021.04.28"]
[Round "6"]
[White "serverbusy"]
[Black "ashikuzzaman"]
[Result "1-0"]
[CurrentPosition "4r1k1/pp3p1p/3R2p1/1q2P3/3Q1P2/1P5P/P5PK/8 w - -"]
[Timezone "UTC"]
[ECO "B52"]
[ECOUrl "https://www.chess.com/openings/Sicilian-Defense-Canal-Main-Line-4.Bxd7-Qxd7-5.O-O-Nc6"]
[UTCDate "2021.04.28"]
[UTCTime "03:01:58"]
[WhiteElo "1644"]
[BlackElo "1940"]
[TimeControl "2100+2"]
[Termination "serverbusy won by resignation"]
[StartTime "03:01:58"]
[EndDate "2021.04.28"]
[EndTime "03:32:18"]
[Link "https://www.chess.com/game/live/13317746643"]

1. e4 {[%clk 0:34:58.5]} 1... c5 {[%clk 0:35:00]} 2. Nf3 {[%clk 0:34:56.4]} 2... d6 {[%clk 0:34:58.8]} 3. Bb5+ {[%clk 0:34:47.5]} 3... Bd7 {[%clk 0:34:53.7]} 4. Bxd7+ {[%clk 0:34:44.7]} 4... Qxd7 {[%clk 0:34:53.2]} 5. O-O {[%clk 0:34:39.5]} 5... Nc6 {[%clk 0:34:52.2]} 6. Qe2 {[%clk 0:34:39.1]} 6... Nf6 {[%clk 0:34:49.5]} 7. Rd1 {[%clk 0:34:37.6]} 7... e5 {[%clk 0:34:46]} 8. c3 {[%clk 0:34:32.9]} 8... Be7 {[%clk 0:34:27]} 9. d4 {[%clk 0:34:31]} 9... cxd4 {[%clk 0:34:23.2]} 10. cxd4 {[%clk 0:34:29.9]} 10... exd4 {[%clk 0:34:20.6]} 11. Nxd4 {[%clk 0:34:27.3]} 11... Nxd4 {[%clk 0:34:20.2]} 12. Rxd4 {[%clk 0:34:25.8]} 12... Qe6 {[%clk 0:34:15.1]} 13. Nc3 {[%clk 0:32:51.3]} 13... O-O {[%clk 0:34:04.8]} 14. Be3 {[%clk 0:31:33.5]} 14... Ng4 {[%clk 0:31:42.5]} 15. Nd5 {[%clk 0:31:21.5]} 15... Nxe3 {[%clk 0:31:35]} 16. Qxe3 {[%clk 0:30:57.7]} 16... Bf6 {[%clk 0:31:32.4]} 17. Nxf6+ {[%clk 0:30:29.1]} 17... Qxf6 {[%clk 0:31:24.3]} 18. Rad1 {[%clk 0:30:27.3]} 18... Rad8 {[%clk 0:31:19.2]} 19. R1d3 {[%clk 0:27:28.1]} 19... Rfe8 {[%clk 0:31:14.5]} 20. Qd2 {[%clk 0:27:25.2]} 20... Re6 {[%clk 0:30:55.8]} 21. f4 {[%clk 0:25:49.1]} 21... Rde8 {[%clk 0:30:42.3]} 22. Rxd6 {[%clk 0:25:13.7]} 22... Rxd6 {[%clk 0:30:35.3]} 23. Rxd6 {[%clk 0:25:12.5]} 23... Qe7 {[%clk 0:30:13.9]} 24. Qd3 {[%clk 0:25:08.7]} 24... g6 {[%clk 0:30:11.6]} 25. e5 {[%clk 0:25:02]} 25... Qc7 {[%clk 0:29:58.2]} 26. Qd2 {[%clk 0:22:55.5]} 26... Qc5+ {[%clk 0:29:35.5]} 27. Qd4 {[%clk 0:22:13.9]} 27... Qc1+ {[%clk 0:29:25]} 28. Kf2 {[%clk 0:22:07.3]} 28... Qc2+ {[%clk 0:29:19.7]} 29. Qd2 {[%clk 0:21:59.3]} 29... Qc5+ {[%clk 0:29:14.8]} 30. Kf3 {[%clk 0:21:41]} 30... Qc4 {[%clk 0:28:51.4]} 31. b3 {[%clk 0:20:18.1]} 31... Qb5 {[%clk 0:28:28.5]} 32. Qd3 {[%clk 0:19:36]} 32... Qa5 {[%clk 0:28:21.9]} 33. Qd2 {[%clk 0:19:27.1]} 33... Qb5 {[%clk 0:28:21.7]} 34. h3 {[%clk 0:18:52.2]} 34... Qf1+ {[%clk 0:25:33.5]} 35. Kg3 {[%clk 0:18:50.8]} 35... Qb5 {[%clk 0:25:26.3]} 36. Kh2 {[%clk 0:18:40.8]} 36... Kg7 {[%clk 0:25:19.7]} 37. Qd4 {[%clk 0:18:24]} 37... Kg8 {[%clk 0:25:10.5]} 1-0

[Event "Live Chess"]
[Site "Chess.com"]
[Date "2021.04.28"]
[Round "6"]
[White "mwncklmann"]
[Black "RagingBeast360"]
[Result "1-0"]
[CurrentPosition "4rk2/2r2pR1/p4Q1p/3B4/q2P4/1p5P/P4PPK/8 b - -"]
[Timezone "UTC"]
[ECO "A50"]
[ECOUrl "https://www.chess.com/openings/Indian-Game-2.c4"]
[UTCDate "2021.04.28"]
[UTCTime "03:01:57"]
[WhiteElo "1870"]
[BlackElo "1655"]
[TimeControl "2100+2"]
[Termination "mwncklmann won on time"]
[StartTime "03:01:57"]
[EndDate "2021.04.28"]
[EndTime "04:12:40"]
[Link "https://www.chess.com/game/live/13317746969"]

1. c4 {[%clk 0:34:54.8]} 1... Nf6 {[%clk 0:34:32.1]} 2. d4 {[%clk 0:34:54.5]} 2... e6 {[%clk 0:34:24.3]} 3. Nc3 {[%clk 0:34:54.4]} 3... Bb4 {[%clk 0:33:57.1]} 4. Qc2 {[%clk 0:34:54]} 4... d5 {[%clk 0:33:55.6]} 5. cxd5 {[%clk 0:34:44.3]} 5... exd5 {[%clk 0:33:25.3]} 6. Nf3 {[%clk 0:34:22.6]} 6... Nc6 {[%clk 0:33:00.7]} 7. Bg5 {[%clk 0:34:17.9]} 7... h6 {[%clk 0:32:45.3]} 8. Bh4 {[%clk 0:34:10.3]} 8... Bd7 {[%clk 0:32:13.1]} 9. e3 {[%clk 0:33:33.4]} 9... a6 {[%clk 0:31:38.7]} 10. Bd3 {[%clk 0:33:03.3]} 10... Qe7 {[%clk 0:30:58.3]} 11. O-O {[%clk 0:32:36.6]} 11... Bxc3 {[%clk 0:30:11.8]} 12. bxc3 {[%clk 0:32:38.5]} 12... O-O {[%clk 0:30:03.3]} 13. Rfe1 {[%clk 0:32:07.3]} 13... Rfe8 {[%clk 0:26:26.6]} 14. e4 {[%clk 0:25:42]} 14... dxe4 {[%clk 0:24:49.9]} 15. Bxe4 {[%clk 0:25:29.1]} 15... Qd6 {[%clk 0:24:23.9]} 16. Bg3 {[%clk 0:25:22.6]} 16... Qa3 {[%clk 0:23:54.4]} 17. Bd3 {[%clk 0:21:44.6]} 17... Nd5 {[%clk 0:22:26.6]} 18. Rec1 {[%clk 0:19:46]} 18... b5 {[%clk 0:19:00.8]} 19. Rab1 {[%clk 0:16:38.1]} 19... Bg4 {[%clk 0:13:52.6]} 20. Be4 {[%clk 0:14:21.3]} 20... Rad8 {[%clk 0:10:43.3]} 21. h3 {[%clk 0:12:24.2]} 21... Bxf3 {[%clk 0:08:13.1]} 22. Bxf3 {[%clk 0:12:23.9]} 22... b4 {[%clk 0:07:50.9]} 23. Bxc7 {[%clk 0:05:56.3]} 23... Rd7 {[%clk 0:06:38.2]} 24. Qf5 {[%clk 0:05:32]} 24... Rxc7 {[%clk 0:05:55.5]} 25. Bxd5 {[%clk 0:05:32.2]} 25... Nxd4 {[%clk 0:05:32.4]} 26. cxd4 {[%clk 0:03:04.8]} 26... Rxc1+ {[%clk 0:04:57.1]} 27. Kh2 {[%clk 0:03:03.8]} 27... Rc7 {[%clk 0:02:51.8]} 28. Rb3 {[%clk 0:02:12.8]} 28... Qa4 {[%clk 0:02:41.7]} 29. Rg3 {[%clk 0:02:02.5]} 29... b3 {[%clk 0:01:36.5]} 30. Qf6 {[%clk 0:01:35.2]} 30... Kf8 {[%clk 0:00:04.2]} 31. Rxg7 {[%clk 0:01:34.5]} 1-0

[Event "Live Chess"]
[Site "Chess.com"]
[Date "2021.04.28"]
[Round "6"]
[White "chessp1234"]
[Black "rimus11"]
[Result "1-0"]
[CurrentPosition "5Q2/6K1/8/3k4/P7/8/8/8 b - a3"]
[Timezone "UTC"]
[ECO "B15"]
[ECOUrl "https://www.chess.com/openings/Caro-Kann-Defense-Tartakower-Forgacs-Variation"]
[UTCDate "2021.04.28"]
[UTCTime "03:01:48"]
[WhiteElo "1766"]
[BlackElo "1513"]
[TimeControl "2100+2"]
[Termination "chessp1234 won by resignation"]
[StartTime "03:01:48"]
[EndDate "2021.04.28"]
[EndTime "04:13:32"]
[Link "https://www.chess.com/game/live/13317747815"]

1. e4 {[%clk 0:35:01.5]} 1... c6 {[%clk 0:34:04.3]} 2. d4 {[%clk 0:34:59.7]} 2... d5 {[%clk 0:34:03.4]} 3. Nc3 {[%clk 0:35:00]} 3... dxe4 {[%clk 0:31:17.5]} 4. Nxe4 {[%clk 0:34:59.3]} 4... Nf6 {[%clk 0:31:18.3]} 5. Nxf6+ {[%clk 0:34:58.8]} 5... exf6 {[%clk 0:31:18.9]} 6. Bc4 {[%clk 0:33:50.2]} 6... Be6 {[%clk 0:30:08.6]} 7. Qd3 {[%clk 0:31:59.8]} 7... Nd7 {[%clk 0:29:31.2]} 8. Bf4 {[%clk 0:31:10.8]} 8... Nb6 {[%clk 0:28:55.9]} 9. Bxe6 {[%clk 0:30:38.6]} 9... fxe6 {[%clk 0:28:51.1]} 10. Ne2 {[%clk 0:28:42.4]} 10... Bd6 {[%clk 0:27:31.1]} 11. O-O {[%clk 0:27:49.4]} 11... O-O {[%clk 0:26:49.5]} 12. c4 {[%clk 0:25:26.9]} 12... Bxf4 {[%clk 0:26:14.5]} 13. Nxf4 {[%clk 0:25:07]} 13... e5 {[%clk 0:24:58.5]} 14. Ne6 {[%clk 0:24:40.8]} 14... e4 {[%clk 0:20:05.7]} 15. Qc3 {[%clk 0:23:22.6]} 15... Qe7 {[%clk 0:19:40.6]} 16. Nxf8 {[%clk 0:23:11.3]} 16... Rxf8 {[%clk 0:19:40.2]} 17. Rfe1 {[%clk 0:23:04.5]} 17... f5 {[%clk 0:19:37.5]} 18. f3 {[%clk 0:22:30.3]} 18... Qe6 {[%clk 0:18:29.4]} 19. b3 {[%clk 0:22:06.6]} 19... Re8 {[%clk 0:16:34.1]} 20. Qe3 {[%clk 0:21:40]} 20... Nd7 {[%clk 0:15:48]} 21. Rad1 {[%clk 0:21:03.9]} 21... Qf7 {[%clk 0:15:46.8]} 22. Qf4 {[%clk 0:20:04.4]} 22... Qg6 {[%clk 0:14:43.7]} 23. fxe4 {[%clk 0:19:28.4]} 23... fxe4 {[%clk 0:14:17.8]} 24. Re3 {[%clk 0:19:15]} 24... Nf6 {[%clk 0:13:00.2]} 25. Rde1 {[%clk 0:17:29.8]} 25... Rf8 {[%clk 0:10:05.9]} 26. Qg3 {[%clk 0:14:59.6]} 26... Qf7 {[%clk 0:08:00.8]} 27. Rf1 {[%clk 0:14:27.4]} 27... Qd7 {[%clk 0:06:50.9]} 28. Qe5 {[%clk 0:13:07.7]} 28... Re8 {[%clk 0:05:21.6]} 29. Qg5 {[%clk 0:11:38.9]} 29... Qxd4 {[%clk 0:05:08.6]} 30. Kh1 {[%clk 0:11:10.9]} 30... Rf8 {[%clk 0:02:45.8]} 31. Rg3 {[%clk 0:10:30.3]} 31... Qd7 {[%clk 0:02:33]} 32. h3 {[%clk 0:10:02.3]} 32... Qe7 {[%clk 0:02:16.7]} 33. Re1 {[%clk 0:09:24]} 33... Re8 {[%clk 0:02:13.4]} 34. Rge3 {[%clk 0:07:56.7]} 34... Qe5 {[%clk 0:01:58.9]} 35. Qxe5 {[%clk 0:07:42.2]} 35... Rxe5 {[%clk 0:01:59.7]} 36. Kh2 {[%clk 0:07:33.2]} 36... g5 {[%clk 0:01:49.2]} 37. g4 {[%clk 0:07:15.2]} 37... Kf7 {[%clk 0:01:38.5]} 38. Kg3 {[%clk 0:06:52.8]} 38... Ke6 {[%clk 0:01:38.8]} 39. h4 {[%clk 0:06:39.8]} 39... h6 {[%clk 0:01:39]} 40. hxg5 {[%clk 0:06:22]} 40... hxg5 {[%clk 0:01:39.4]} 41. R3e2 {[%clk 0:06:01.6]} 41... Kd6 {[%clk 0:01:33.1]} 42. Rf2 {[%clk 0:05:47.5]} 42... Re6 {[%clk 0:01:17.8]} 43. Rf5 {[%clk 0:05:37.5]} 43... b5 {[%clk 0:00:45.4]} 44. Re3 {[%clk 0:04:44.6]} 44... bxc4 {[%clk 0:00:44.7]} 45. bxc4 {[%clk 0:04:45.3]} 45... Nh7 {[%clk 0:00:31.7]} 46. c5+ {[%clk 0:04:28.7]} 46... Ke7 {[%clk 0:00:28.5]} 47. Kf2 {[%clk 0:04:26.9]} 47... a5 {[%clk 0:00:18.4]} 48. Ra3 {[%clk 0:04:18.6]} 48... Rf6 {[%clk 0:00:16.3]} 49. Ke3 {[%clk 0:04:03.3]} 49... Rxf5 {[%clk 0:00:15.6]} 50. gxf5 {[%clk 0:04:04.3]} 50... Nf6 {[%clk 0:00:16.6]} 51. Rxa5 {[%clk 0:04:02]} 51... Kf7 {[%clk 0:00:17]} 52. Ra7+ {[%clk 0:04:00.2]} 52... Ke8 {[%clk 0:00:13.3]} 53. Rc7 {[%clk 0:03:53.5]} 53... Kd8 {[%clk 0:00:10.7]} 54. Rxc6 {[%clk 0:03:48.6]} 54... Ng4+ {[%clk 0:00:09.6]} 55. Kxe4 {[%clk 0:03:45.6]} 55... Nf2+ {[%clk 0:00:07.1]} 56. Kf3 {[%clk 0:03:45.1]} 56... Nd3 {[%clk 0:00:06.8]} 57. Rh6 {[%clk 0:03:17.4]} 57... Kd7 {[%clk 0:00:06.5]} 58. c6+ {[%clk 0:03:16.4]} 58... Kc7 {[%clk 0:00:07]} 59. Kg4 {[%clk 0:03:15.6]} 59... Ne5+ {[%clk 0:00:07.7]} 60. Kxg5 {[%clk 0:03:11.2]} 60... Nf7+ {[%clk 0:00:04.9]} 61. Kg6 {[%clk 0:03:10.1]} 61... Ne5+ {[%clk 0:00:05.1]} 62. Kg7 {[%clk 0:03:08.9]} 62... Nxc6 {[%clk 0:00:05.7]} 63. Rxc6+ {[%clk 0:03:09.4]} 63... Kxc6 {[%clk 0:00:07.1]} 64. f6 {[%clk 0:03:10.5]} 64... Kd7 {[%clk 0:00:08.5]} 65. f7 {[%clk 0:03:11.7]} 65... Kd6 {[%clk 0:00:08.5]} 66. f8=Q+ {[%clk 0:03:12.2]} 66... Kd5 {[%clk 0:00:09.8]} 67. a4 {[%clk 0:03:10.7]} 1-0